[Event "Late-Titled-Tuesday-Blitz-March-05-2024"]
[Site "Chess.com"]
[Date "2024.03.05"]
[Round "6"]
[White "GAO"]
[Black "RantomOpening"]
[Result "0-1"]
[WhiteElo "2312"]
[BlackElo "2586"]
[TimeControl "180+1"]
[EndTime "15:05:40 PST"]
[Termination "RantomOpening won on time"]

1. e4 {[%clk 0:03:00.9]} 1... c5 {[%clk 0:02:58.3]} 2. Nf3 {[%clk 0:03:00.3]}
2... e6 {[%clk 0:02:57.5]} 3. c3 {[%clk 0:02:59.7]} 3... Nf6 {[%clk 0:02:57.1]}
4. e5 {[%clk 0:02:59.5]} 4... Nd5 {[%clk 0:02:57.2]} 5. d4 {[%clk 0:03:00.2]}
5... cxd4 {[%clk 0:02:57.2]} 6. cxd4 {[%clk 0:03:01.1]} 6... d6 {[%clk
0:02:56.3]} 7. a3 {[%clk 0:03:01.4]} 7... dxe5 {[%clk 0:02:54.7]} 8. dxe5 {[%clk
0:03:02.3]} 8... Be7 {[%clk 0:02:54.6]} 9. Bd3 {[%clk 0:03:02]} 9... O-O {[%clk
0:02:54.4]} 10. Qe2 {[%clk 0:03:01.9]} 10... Bd7 {[%clk 0:02:44.6]} 11. O-O
{[%clk 0:02:59.2]} 11... Bc6 {[%clk 0:02:44.3]} 12. Qe4 {[%clk 0:02:56.3]} 12...
g6 {[%clk 0:02:39.4]} 13. Qe2 {[%clk 0:02:53.9]} 13... Nd7 {[%clk 0:02:38.7]}
14. Bh6 {[%clk 0:02:53.3]} 14... Re8 {[%clk 0:02:38.7]} 15. Nbd2 {[%clk
0:02:46.6]} 15... Nc5 {[%clk 0:02:37.8]} 16. Bc2 {[%clk 0:02:45.6]} 16... Rc8
{[%clk 0:02:18.9]} 17. Rfd1 {[%clk 0:02:41.3]} 17... Qb6 {[%clk 0:02:17.5]} 18.
Nc4 {[%clk 0:02:38.6]} 18... Qa6 {[%clk 0:02:15.8]} 19. Nfd2 {[%clk 0:01:49.8]}
19... Red8 {[%clk 0:02:05]} 20. Qg4 {[%clk 0:01:42.5]} 20... Bb5 {[%clk
0:01:56.3]} 21. Nd6 {[%clk 0:00:50]} 21... Be2 {[%clk 0:01:55]} 22. Qg3 {[%clk
0:00:40.6]} 22... Bxd1 {[%clk 0:01:53]} 23. Nxc8 {[%clk 0:00:37.7]} 23... Bxc2
{[%clk 0:01:48.9]} 24. Nxe7+ {[%clk 0:00:37.4]} 24... Nxe7 {[%clk 0:01:49.8]}
25. Bg5 {[%clk 0:00:29.8]} 25... Nf5 {[%clk 0:01:49]} 26. Qc3 {[%clk 0:00:20.7]}
26... Ne4 {[%clk 0:01:47.6]} 27. Nxe4 {[%clk 0:00:19.1]} 27... Bxe4 {[%clk
0:01:46.9]} 28. Bxd8 {[%clk 0:00:18.7]} 28... Bd5 {[%clk 0:01:32.5]} 29. Qc8
{[%clk 0:00:16.8]} 29... Qc6 {[%clk 0:01:32]} 30. Qb8 {[%clk 0:00:14.8]} 30...
Qe8 {[%clk 0:01:26.6]} 31. Rc1 {[%clk 0:00:10.9]} 31... Bc6 {[%clk 0:01:24.2]}
32. Qc7 {[%clk 0:00:09.5]} 32... Nd4 {[%clk 0:01:23.1]} 33. Re1 {[%clk
0:00:06.8]} 33... Nb5 {[%clk 0:01:19.3]} 34. Qe7 {[%clk 0:00:06.7]} 34... Nd4
{[%clk 0:01:13.5]} 35. Qxe8+ {[%clk 0:00:06.3]} 35... Bxe8 {[%clk 0:01:14.4]}
36. Bf6 {[%clk 0:00:06.4]} 36... Ba4 {[%clk 0:01:07]} 37. h4 {[%clk 0:00:05.2]}
37... h5 {[%clk 0:01:05.9]} 38. Re3 {[%clk 0:00:03.6]} 38... Kf8 {[%clk
0:01:05.2]} 39. Rd3 {[%clk 0:00:03.5]} 39... Nc6 {[%clk 0:01:05.5]} 40. Rd7
{[%clk 0:00:02.1]} 40... Na5 {[%clk 0:00:50.5]} 41. Rc7 {[%clk 0:00:02.4]} 41...
Ke8 {[%clk 0:00:42.6]} 42. Rc8+ {[%clk 0:00:03.3]} 42... Kd7 {[%clk 0:00:42.9]}
43. Rd8+ {[%clk 0:00:04]} 43... Kc7 {[%clk 0:00:42.9]} 44. Rf8 {[%clk
0:00:04.9]} 44... Nc4 {[%clk 0:00:38.6]} 45. Rxf7+ {[%clk 0:00:05.7]} 45... Kc6
{[%clk 0:00:39]} 46. Rg7 {[%clk 0:00:06.3]} 46... Nxb2 {[%clk 0:00:37.7]} 47.
Rxg6 {[%clk 0:00:07]} 47... b5 {[%clk 0:00:37.6]} 48. Be7 {[%clk 0:00:07.4]}
48... Bb3 {[%clk 0:00:37.7]} 49. Rh6 {[%clk 0:00:07.2]} 49... a5 {[%clk
0:00:37.9]} 50. Rxh5 {[%clk 0:00:07.3]} 50... b4 {[%clk 0:00:38.8]} 51. axb4
{[%clk 0:00:06.9]} 51... a4 {[%clk 0:00:39.5]} 52. Rg5 {[%clk 0:00:05.9]} 52...
Kb5 {[%clk 0:00:39.8]} 53. Rg8 {[%clk 0:00:04.4]} 53... a3 {[%clk 0:00:40.2]}
54. Rb8+ {[%clk 0:00:05.2]} 54... Kc4 {[%clk 0:00:39.7]} 55. Ra8 {[%clk
0:00:04.2]} 55... Na4 {[%clk 0:00:39]} 56. b5 {[%clk 0:00:03.5]} 56... a2 {[%clk
0:00:39.1]} 57. b6 {[%clk 0:00:03.1]} 57... a1=Q+ {[%clk 0:00:38.9]} 58. Kh2
{[%clk 0:00:03.7]} 58... Qxe5+ {[%clk 0:00:39.5]} 59. g3 {[%clk 0:00:04.1]}
59... Nxb6 {[%clk 0:00:37.6]} 0-1

[Event "Late-Titled-Tuesday-Blitz-March-05-2024"]
[Site "Chess.com"]
[Date "2024.03.05"]
[Round "6"]
[White "Szparu"]
[Black "Msb2"]
[Result "0-1"]
[WhiteElo "2806"]
[BlackElo "3001"]
[TimeControl "180+1"]
[EndTime "15:05:44 PST"]
[Termination "Msb2 won by checkmate"]

1. e4 {[%clk 0:03:00.9]} 1... e6 {[%clk 0:02:59.9]} 2. d4 {[%clk 0:02:58.9]}
2... d5 {[%clk 0:03:00.4]} 3. e5 {[%clk 0:02:58.1]} 3... c5 {[%clk 0:03:00.6]}
4. c3 {[%clk 0:02:57.9]} 4... Nc6 {[%clk 0:03:01.3]} 5. Nf3 {[%clk 0:02:57.8]}
5... Nge7 {[%clk 0:03:02.1]} 6. Bd3 {[%clk 0:02:57]} 6... cxd4 {[%clk
0:03:02.4]} 7. cxd4 {[%clk 0:02:56.8]} 7... Nf5 {[%clk 0:03:03.1]} 8. Bxf5
{[%clk 0:02:57]} 8... exf5 {[%clk 0:03:04]} 9. Nc3 {[%clk 0:02:57.3]} 9... Be7
{[%clk 0:03:04]} 10. Ne2 {[%clk 0:02:56.5]} 10... g5 {[%clk 0:03:00.6]} 11. Nd2
{[%clk 0:02:25.9]} 11... Qb6 {[%clk 0:02:44.8]} 12. Nb3 {[%clk 0:02:24.3]} 12...
a5 {[%clk 0:02:43.5]} 13. h4 {[%clk 0:02:23.1]} 13... a4 {[%clk 0:02:42.7]} 14.
Nc5 {[%clk 0:02:21.1]} 14... Nxd4 {[%clk 0:02:31.3]} 15. Nxa4 {[%clk 0:02:12.6]}
15... Qb4+ {[%clk 0:02:22.6]} 16. Nec3 {[%clk 0:01:56.2]} 16... Bd7 {[%clk
0:02:07.4]} 17. a3 {[%clk 0:01:56.4]} 17... Qa5 {[%clk 0:01:03.4]} 18. Qxd4
{[%clk 0:01:55.8]} 18... Bxa4 {[%clk 0:01:03.7]} 19. Bxg5 {[%clk 0:01:46.7]}
19... Bc5 {[%clk 0:01:03.8]} 20. Qxa4+ {[%clk 0:01:23.1]} 20... Qxa4 {[%clk
0:01:04.1]} 21. Nxa4 {[%clk 0:01:24]} 21... Rxa4 {[%clk 0:01:04.8]} 22. Bf6
{[%clk 0:01:08.8]} 22... Rg8 {[%clk 0:01:04.4]} 23. Rc1 {[%clk 0:01:05.9]} 23...
Rc4 {[%clk 0:00:59.7]} 24. Rxc4 {[%clk 0:00:59.3]} 24... dxc4 {[%clk 0:01:00.6]}
25. g3 {[%clk 0:00:56.6]} 25... Rg4 {[%clk 0:01:00.4]} 26. Ke2 {[%clk
0:00:48.8]} 26... Bd4 {[%clk 0:00:58.4]} 27. Rd1 {[%clk 0:00:46]} 27... Re4+
{[%clk 0:00:39.3]} 28. Kf1 {[%clk 0:00:40.8]} 28... Bb6 {[%clk 0:00:39.4]} 29.
Rd6 {[%clk 0:00:35.8]} 29... Bc7 {[%clk 0:00:37.1]} 30. Rd5 {[%clk 0:00:36.4]}
30... b6 {[%clk 0:00:32.4]} 31. h5 {[%clk 0:00:31.7]} 31... f4 {[%clk
0:00:31.1]} 32. f3 {[%clk 0:00:10.4]} 32... Re3 {[%clk 0:00:31.1]} 33. Kf2
{[%clk 0:00:09.5]} 33... Rb3 {[%clk 0:00:30.8]} 34. Rd2 {[%clk 0:00:08.7]} 34...
fxg3+ {[%clk 0:00:27.4]} 35. Kxg3 {[%clk 0:00:09.3]} 35... b5 {[%clk 0:00:22.3]}
36. Kf4 {[%clk 0:00:06.8]} 36... Ba5 {[%clk 0:00:22.5]} 37. Rg2 {[%clk
0:00:05.6]} 37... Kd7 {[%clk 0:00:22.6]} 38. h6 {[%clk 0:00:04.2]} 38... Ke6
{[%clk 0:00:23.1]} 39. Ke4 {[%clk 0:00:04.3]} 39... Bb6 {[%clk 0:00:21.9]} 40.
Rg7 {[%clk 0:00:04.3]} 40... Rxb2 {[%clk 0:00:19.5]} 41. Rxh7 {[%clk 0:00:04.4]}
41... Re2+ {[%clk 0:00:20]} 42. Kf4 {[%clk 0:00:04.1]} 42... c3 {[%clk
0:00:18.6]} 43. Rh8 {[%clk 0:00:04.3]} 43... Kd7 {[%clk 0:00:18.6]} 44. h7
{[%clk 0:00:03.8]} 44... c2 {[%clk 0:00:18.7]} 45. Rc8 {[%clk 0:00:02.8]} 45...
Kxc8 {[%clk 0:00:15.7]} 46. h8=Q+ {[%clk 0:00:03.1]} 46... Kb7 {[%clk
0:00:16.6]} 47. Qh1 {[%clk 0:00:02.2]} 47... Be3+ {[%clk 0:00:16.8]} 48. Kf5
{[%clk 0:00:01.9]} 48... c1=Q {[%clk 0:00:17.7]} 49. Qh7 {[%clk 0:00:01.2]}
49... Qc2+ {[%clk 0:00:17.9]} 50. Kg4 {[%clk 0:00:01.1]} 50... Qxh7 {[%clk
0:00:18.8]} 51. f4 {[%clk 0:00:01.5]} 51... Qg6+ {[%clk 0:00:18.8]} 52. Kf3
{[%clk 0:00:01.6]} 52... Qg2# {[%clk 0:00:19.7]} 0-1

[Event "Late-Titled-Tuesday-Blitz-March-05-2024"]
[Site "Chess.com"]
[Date "2024.03.05"]
[Round "6"]
[White "jinbojinbo"]
[Black "Kombinator01"]
[Result "1-0"]
[WhiteElo "2642"]
[BlackElo "2497"]
[TimeControl "180+1"]
[EndTime "15:05:46 PST"]
[Termination "jinbojinbo won by resignation"]

1. Nf3 {[%clk 0:03:00.9]} 1... d5 {[%clk 0:02:59.3]} 2. e3 {[%clk 0:03:00.2]}
2... g6 {[%clk 0:02:58.3]} 3. d4 {[%clk 0:02:59.1]} 3... Bg7 {[%clk 0:02:58.8]}
4. c4 {[%clk 0:02:59.4]} 4... Nf6 {[%clk 0:02:59.7]} 5. Nc3 {[%clk 0:02:58.8]}
5... O-O {[%clk 0:02:59.4]} 6. Be2 {[%clk 0:02:56.2]} 6... c5 {[%clk 0:02:59.7]}
7. O-O {[%clk 0:02:54.9]} 7... cxd4 {[%clk 0:02:59.6]} 8. Nxd4 {[%clk
0:02:54.6]} 8... Nc6 {[%clk 0:02:59.8]} 9. Nxc6 {[%clk 0:02:39.3]} 9... bxc6
{[%clk 0:03:00.7]} 10. Qa4 {[%clk 0:02:39.2]} 10... Qc7 {[%clk 0:02:51.8]} 11.
Rd1 {[%clk 0:02:37.6]} 11... Bb7 {[%clk 0:02:50.7]} 12. Bd2 {[%clk 0:02:32.6]}
12... Rfd8 {[%clk 0:02:49.5]} 13. Rac1 {[%clk 0:02:30.6]} 13... d4 {[%clk
0:02:49.5]} 14. exd4 {[%clk 0:02:28.2]} 14... Rxd4 {[%clk 0:02:50.4]} 15. Be3
{[%clk 0:02:26]} 15... Rxd1+ {[%clk 0:02:50.1]} 16. Rxd1 {[%clk 0:02:26.8]}
16... Nd7 {[%clk 0:02:41.4]} 17. c5 {[%clk 0:02:21.3]} 17... h5 {[%clk 0:02:35]}
18. Bf3 {[%clk 0:02:15.6]} 18... Ne5 {[%clk 0:02:34.3]} 19. Be2 {[%clk 0:02:06]}
19... a5 {[%clk 0:02:27.2]} 20. Bf4 {[%clk 0:01:43.2]} 20... Rd8 {[%clk
0:02:25.7]} 21. h3 {[%clk 0:01:37.2]} 21... Rxd1+ {[%clk 0:02:24.3]} 22. Bxd1
{[%clk 0:01:35.6]} 22... Qd8 {[%clk 0:02:20.6]} 23. Be2 {[%clk 0:01:31.5]} 23...
Nd7 {[%clk 0:02:03.3]} 24. Ne4 {[%clk 0:01:22.5]} 24... Bxb2 {[%clk 0:01:54.7]}
25. Qb3 {[%clk 0:01:21.1]} 25... Be5 {[%clk 0:01:46.9]} 26. Bxe5 {[%clk
0:01:17.8]} 26... Nxe5 {[%clk 0:01:47.8]} 27. Qxb7 {[%clk 0:01:17.9]} 27... Qd4
{[%clk 0:01:48.4]} 28. Qb1 {[%clk 0:01:06.9]} 28... a4 {[%clk 0:01:38.7]} 29.
Qc2 {[%clk 0:00:59.5]} 29... a3 {[%clk 0:01:37.7]} 30. Nd2 {[%clk 0:00:55.6]}
30... Nd7 {[%clk 0:01:32.9]} 31. Nb3 {[%clk 0:00:54.2]} 31... Qe5 {[%clk
0:01:27.4]} 32. Bf3 {[%clk 0:00:50.4]} 32... Qe1+ {[%clk 0:01:18.7]} 33. Kh2
{[%clk 0:00:49.1]} 33... Qe5+ {[%clk 0:01:19.3]} 34. g3 {[%clk 0:00:49.3]} 34...
Qb2 {[%clk 0:01:18.1]} 35. Qxb2 {[%clk 0:00:44.3]} 35... axb2 {[%clk 0:01:19]}
36. Be4 {[%clk 0:00:43.3]} 36... f5 {[%clk 0:01:17.5]} 37. Bb1 {[%clk
0:00:42.3]} 37... Ne5 {[%clk 0:01:17.5]} 38. a4 {[%clk 0:00:38.4]} 38... Nc4
{[%clk 0:01:18]} 39. a5 {[%clk 0:00:36.7]} 39... Na3 {[%clk 0:01:18.2]} 40. Bd3
{[%clk 0:00:33.2]} 40... Kf7 {[%clk 0:01:10.4]} 41. a6 {[%clk 0:00:32.1]} 41...
Nb5 {[%clk 0:01:11]} 42. Nd2 {[%clk 0:00:30.5]} 42... Na7 {[%clk 0:01:10.4]} 43.
Nc4 {[%clk 0:00:29.7]} 43... Ke6 {[%clk 0:01:09.9]} 44. Nxb2 {[%clk 0:00:29.2]}
44... Kd5 {[%clk 0:01:10.6]} 45. Na4 {[%clk 0:00:26.2]} 45... Kd4 {[%clk
0:01:10.6]} 46. Be2 {[%clk 0:00:26]} 46... e5 {[%clk 0:01:10.4]} 47. h4 {[%clk
0:00:25.4]} 47... e4 {[%clk 0:01:06.7]} 48. Kg2 {[%clk 0:00:25.5]} 48... e3
{[%clk 0:01:04.2]} 49. f4 {[%clk 0:00:23.9]} 49... Ke4 {[%clk 0:01:03.4]} 50.
Kf1 {[%clk 0:00:22.9]} 50... Kd4 {[%clk 0:01:02.7]} 51. Ke1 {[%clk 0:00:23.1]}
51... Nc8 {[%clk 0:01:02.2]} 52. Kd1 {[%clk 0:00:22.9]} 52... Na7 {[%clk
0:01:01.3]} 53. Kc2 {[%clk 0:00:22.6]} 53... Nc8 {[%clk 0:01:01.2]} 54. Nb6
{[%clk 0:00:15]} 54... Na7 {[%clk 0:01:01.2]} 55. Nd7 {[%clk 0:00:14.7]} 55...
Kd5 {[%clk 0:00:59.1]} 56. Nf8 {[%clk 0:00:14.2]} 56... Kxc5 {[%clk 0:00:59.4]}
57. Nxg6 {[%clk 0:00:14.4]} 57... Kb6 {[%clk 0:00:56.7]} 58. Ne7 {[%clk
0:00:14]} 58... c5 {[%clk 0:00:57.1]} 59. Nxf5 {[%clk 0:00:14.1]} 59... Nc6
{[%clk 0:00:57.3]} 60. Nxe3 {[%clk 0:00:12.4]} 60... Nd4+ {[%clk 0:00:57.5]} 61.
Kd2 {[%clk 0:00:12.7]} 61... Nb3+ {[%clk 0:00:57.1]} 62. Kd1 {[%clk 0:00:12.8]}
62... Nd4 {[%clk 0:00:57.4]} 63. f5 {[%clk 0:00:13.1]} 63... Nc6 {[%clk
0:00:57.2]} 64. f6 {[%clk 0:00:13.1]} 64... Ne5 {[%clk 0:00:57.2]} 65. Nc4+
{[%clk 0:00:13.4]} 1-0

[Event "Late-Titled-Tuesday-Blitz-March-05-2024"]
[Site "Chess.com"]
[Date "2024.03.05"]
[Round "6"]
[White "BogdanDeac"]
[Black "ameetghasi100"]
[Result "0-1"]
[WhiteElo "2959"]
[BlackElo "2783"]
[TimeControl "180+1"]
[EndTime "15:05:50 PST"]
[Termination "ameetghasi100 won by resignation"]

1. d4 {[%clk 0:03:00.9]} 1... g6 {[%clk 0:03:00.2]} 2. e4 {[%clk 0:03:00.5]}
2... Bg7 {[%clk 0:03:00.7]} 3. Nf3 {[%clk 0:03:01.1]} 3... d6 {[%clk 0:03:01.2]}
4. h3 {[%clk 0:03:01.7]} 4... Nf6 {[%clk 0:03:01.6]} 5. Bd3 {[%clk 0:03:02]}
5... O-O {[%clk 0:03:02]} 6. O-O {[%clk 0:03:02.7]} 6... Nc6 {[%clk 0:03:02.3]}
7. Re1 {[%clk 0:03:02.1]} 7... Nd7 {[%clk 0:03:02.6]} 8. c3 {[%clk 0:02:56.5]}
8... e5 {[%clk 0:03:02.2]} 9. Be3 {[%clk 0:02:48.8]} 9... a6 {[%clk 0:02:59.4]}
10. Na3 {[%clk 0:02:46.3]} 10... b6 {[%clk 0:02:59.7]} 11. Qd2 {[%clk
0:02:43.8]} 11... Bb7 {[%clk 0:02:59.9]} 12. Nc2 {[%clk 0:02:42.6]} 12... Kh8
{[%clk 0:02:39.2]} 13. Bh6 {[%clk 0:02:39.9]} 13... Bxh6 {[%clk 0:02:37]} 14.
Qxh6 {[%clk 0:02:38.7]} 14... Qf6 {[%clk 0:02:37.4]} 15. Ne3 {[%clk 0:02:34.9]}
15... Qg7 {[%clk 0:02:36.9]} 16. Qxg7+ {[%clk 0:02:34.7]} 16... Kxg7 {[%clk
0:02:36.5]} 17. Nd5 {[%clk 0:02:34.4]} 17... Rac8 {[%clk 0:02:36.5]} 18. Rac1
{[%clk 0:02:34.5]} 18... Rfe8 {[%clk 0:02:36.2]} 19. a3 {[%clk 0:02:29.3]} 19...
Ne7 {[%clk 0:02:32.9]} 20. Nxe7 {[%clk 0:02:28.3]} 20... Rxe7 {[%clk 0:02:33.8]}
21. d5 {[%clk 0:02:28.4]} 21... a5 {[%clk 0:02:24]} 22. b4 {[%clk 0:02:23.9]}
22... Ra8 {[%clk 0:02:21.4]} 23. Nd2 {[%clk 0:02:19.5]} 23... Nf6 {[%clk
0:02:02.3]} 24. Bb5 {[%clk 0:02:15.2]} 24... Ra7 {[%clk 0:01:45.1]} 25. f3
{[%clk 0:02:08.2]} 25... Nh5 {[%clk 0:01:39.7]} 26. Nb3 {[%clk 0:01:54.4]} 26...
axb4 {[%clk 0:01:29.9]} 27. axb4 {[%clk 0:01:53.2]} 27... Ra3 {[%clk 0:01:30]}
28. Nd2 {[%clk 0:01:53.3]} 28... Ra2 {[%clk 0:01:29.4]} 29. Red1 {[%clk
0:01:49.4]} 29... Nf4 {[%clk 0:01:20.2]} 30. Bc4 {[%clk 0:00:52.5]} 30... Ra8
{[%clk 0:01:10.7]} 31. Bb5 {[%clk 0:00:46.7]} 31... Ra2 {[%clk 0:01:09.7]} 32.
Ra1 {[%clk 0:00:44.1]} 32... Rc2 {[%clk 0:00:56.7]} 33. Ra3 {[%clk 0:00:43.7]}
33... Bc8 {[%clk 0:00:47.4]} 34. Bf1 {[%clk 0:00:29.3]} 34... h5 {[%clk
0:00:38.6]} 35. h4 {[%clk 0:00:27.8]} 35... g5 {[%clk 0:00:32.1]} 36. hxg5
{[%clk 0:00:14.2]} 36... h4 {[%clk 0:00:31.4]} 37. Nc4 {[%clk 0:00:10.9]} 37...
h3 {[%clk 0:00:17.7]} 38. Rd2 {[%clk 0:00:04.9]} 38... Rc1 {[%clk 0:00:16.9]}
39. g3 {[%clk 0:00:05.2]} 39... Nh5 {[%clk 0:00:15.6]} 40. Ne3 {[%clk
0:00:03.8]} 40... Nxg3 {[%clk 0:00:15.5]} 41. Rf2 {[%clk 0:00:04.5]} 41... Kg6
{[%clk 0:00:10.7]} 42. Kh2 {[%clk 0:00:04.5]} 42... Nxf1+ {[%clk 0:00:08.1]} 43.
Nxf1 {[%clk 0:00:05.4]} 43... Kxg5 {[%clk 0:00:08.6]} 44. Ne3 {[%clk 0:00:04.9]}
44... Kf4 {[%clk 0:00:07.7]} 45. Nf1 {[%clk 0:00:05]} 45... f5 {[%clk
0:00:07.4]} 46. c4 {[%clk 0:00:04.3]} 46... Rg7 {[%clk 0:00:07.1]} 47. Nd2
{[%clk 0:00:03.1]} 47... Rgg1 {[%clk 0:00:06.1]} 0-1

[Event "Late-Titled-Tuesday-Blitz-March-05-2024"]
[Site "Chess.com"]
[Date "2024.03.05"]
[Round "6"]
[White "the_blue_pill"]
[Black "vladgoncharov"]
[Result "1/2-1/2"]
[WhiteElo "2418"]
[BlackElo "2623"]
[TimeControl "180+1"]
[EndTime "15:05:52 PST"]
[Termination "Game drawn by repetition"]

1. e4 {[%clk 0:02:58.9]} 1... e6 {[%clk 0:02:57.7]} 2. d4 {[%clk 0:02:58.6]}
2... d5 {[%clk 0:02:57.4]} 3. e5 {[%clk 0:02:59.2]} 3... c5 {[%clk 0:02:57.1]}
4. c3 {[%clk 0:02:59.9]} 4... Nc6 {[%clk 0:02:57.6]} 5. Nf3 {[%clk 0:03:00.4]}
5... Nge7 {[%clk 0:02:58]} 6. a3 {[%clk 0:03:00.6]} 6... c4 {[%clk 0:02:53.8]}
7. Nbd2 {[%clk 0:02:56.9]} 7... Bd7 {[%clk 0:02:52.3]} 8. g3 {[%clk 0:02:53.3]}
8... Na5 {[%clk 0:02:51.8]} 9. h4 {[%clk 0:02:50.8]} 9... Nc8 {[%clk 0:02:49.8]}
10. h5 {[%clk 0:02:46.5]} 10... h6 {[%clk 0:02:49.5]} 11. Bh3 {[%clk 0:02:46.5]}
11... Nb6 {[%clk 0:02:49.1]} 12. Nf1 {[%clk 0:02:36.3]} 12... Ba4 {[%clk
0:02:45.3]} 13. Qe2 {[%clk 0:02:36.8]} 13... Nb3 {[%clk 0:02:45.1]} 14. Rb1
{[%clk 0:02:36.6]} 14... Nxc1 {[%clk 0:02:40.8]} 15. Rxc1 {[%clk 0:02:36.1]}
15... Be7 {[%clk 0:02:39.2]} 16. Ne3 {[%clk 0:02:35]} 16... Bg5 {[%clk
0:02:35.1]} 17. O-O {[%clk 0:02:32.5]} 17... Bd7 {[%clk 0:02:28.5]} 18. Nd2
{[%clk 0:02:31]} 18... Bxe3 {[%clk 0:02:23.5]} 19. Qxe3 {[%clk 0:02:26.4]} 19...
Qg5 {[%clk 0:02:22.7]} 20. Qe2 {[%clk 0:02:20.2]} 20... O-O {[%clk 0:02:13.2]}
21. Kh2 {[%clk 0:02:16.5]} 21... f5 {[%clk 0:02:12.2]} 22. exf6 {[%clk
0:02:10.8]} 22... Qxf6 {[%clk 0:02:11.7]} 23. f4 {[%clk 0:02:07.6]} 23... Nc8
{[%clk 0:02:02.1]} 24. Qe5 {[%clk 0:01:58.4]} 24... Qxe5 {[%clk 0:01:54]} 25.
fxe5 {[%clk 0:01:54.3]} 25... Ne7 {[%clk 0:01:53.8]} 26. Bg4 {[%clk 0:01:49.5]}
26... Rxf1 {[%clk 0:01:52.5]} 27. Rxf1 {[%clk 0:01:48.4]} 27... Rf8 {[%clk
0:01:51.8]} 28. Rf4 {[%clk 0:01:41.8]} 28... Nc8 {[%clk 0:01:46.4]} 29. Nf1
{[%clk 0:01:24.8]} 29... Nb6 {[%clk 0:01:45.2]} 30. Ne3 {[%clk 0:01:24.9]} 30...
Re8 {[%clk 0:01:34]} 31. Kg1 {[%clk 0:01:13.9]} 31... Re7 {[%clk 0:01:33.8]} 32.
Kf1 {[%clk 0:01:10.7]} 32... Be8 {[%clk 0:01:30.5]} 33. Ke1 {[%clk 0:01:08.1]}
33... Bf7 {[%clk 0:01:29.5]} 34. Kd2 {[%clk 0:01:06.1]} 34... Kf8 {[%clk
0:01:28.4]} 35. Ng2 {[%clk 0:00:46.6]} 35... Ke8 {[%clk 0:01:26.7]} 36. Rf2
{[%clk 0:00:46.3]} 36... Na4 {[%clk 0:01:18.5]} 37. Kc1 {[%clk 0:00:44.7]} 37...
b5 {[%clk 0:01:17.8]} 38. Nf4 {[%clk 0:00:41.8]} 38... Nb6 {[%clk 0:01:17.6]}
39. Bd1 {[%clk 0:00:38.5]} 39... a5 {[%clk 0:01:16.7]} 40. Bc2 {[%clk
0:00:37.8]} 40... Bg8 {[%clk 0:01:07.2]} 41. Bg6+ {[%clk 0:00:31.8]} 41... Bf7
{[%clk 0:01:06.4]} 42. Nxe6 {[%clk 0:00:24]} 42... Bxg6 {[%clk 0:00:58.9]} 43.
Rf8+ {[%clk 0:00:24.3]} 43... Kd7 {[%clk 0:00:58.6]} 44. Nc5+ {[%clk 0:00:24.4]}
44... Kc7 {[%clk 0:00:56.9]} 45. hxg6 {[%clk 0:00:25]} 45... Nd7 {[%clk
0:00:57.3]} 46. Rf7 {[%clk 0:00:18.7]} 46... Rxf7 {[%clk 0:00:53.8]} 47. gxf7
{[%clk 0:00:19.6]} 47... Nf8 {[%clk 0:00:54.1]} 48. e6 {[%clk 0:00:16.7]} 48...
Kd6 {[%clk 0:00:54]} 49. Kd2 {[%clk 0:00:16.9]} 49... g5 {[%clk 0:00:44.5]} 50.
g4 {[%clk 0:00:15.3]} 50... Ke7 {[%clk 0:00:44.1]} 51. Ke3 {[%clk 0:00:15.6]}
51... Kd8 {[%clk 0:00:36.8]} 52. Nd7 {[%clk 0:00:10.8]} 52... Ke7 {[%clk
0:00:36.1]} 53. Nxf8 {[%clk 0:00:09.9]} 53... Kxf8 {[%clk 0:00:36.3]} 54. Kf3
{[%clk 0:00:09.9]} 54... a4 {[%clk 0:00:36.1]} 55. Ke3 {[%clk 0:00:10]} 55...
Ke7 {[%clk 0:00:36.2]} 56. Kf3 {[%clk 0:00:10.9]} 56... Kf8 {[%clk 0:00:36.4]}
57. Kg3 {[%clk 0:00:11.7]} 57... Ke7 {[%clk 0:00:36.5]} 58. Kh3 {[%clk
0:00:12.6]} 58... Kf8 {[%clk 0:00:36.7]} 59. Kg2 {[%clk 0:00:13.5]} 59... Ke7
{[%clk 0:00:37.1]} 60. Kg3 {[%clk 0:00:14.4]} 60... Kf8 {[%clk 0:00:37.5]} 61.
Kh3 {[%clk 0:00:15.1]} 61... Ke7 {[%clk 0:00:37.8]} 62. Kg3 {[%clk 0:00:16]}
62... Kf8 {[%clk 0:00:38.2]} 63. Kh2 {[%clk 0:00:16.9]} 63... Ke7 {[%clk
0:00:38.6]} 64. Kh1 {[%clk 0:00:17.8]} 64... Kf8 {[%clk 0:00:38]} 65. Kg1 {[%clk
0:00:18.7]} 65... Ke7 {[%clk 0:00:36.6]} 66. Kf1 {[%clk 0:00:19.6]} 66... Kf8
{[%clk 0:00:36.8]} 67. Ke1 {[%clk 0:00:20.5]} 67... Ke7 {[%clk 0:00:37.1]} 68.
Kf2 {[%clk 0:00:21.4]} 68... Kf8 {[%clk 0:00:37.5]} 69. Kf1 {[%clk 0:00:22.3]}
69... Ke7 {[%clk 0:00:38.1]} 70. Kg1 {[%clk 0:00:23.2]} 70... Kf8 {[%clk
0:00:38.7]} 71. Kf1 {[%clk 0:00:24.1]} 71... Ke7 {[%clk 0:00:39]} 72. Ke2 {[%clk
0:00:25]} 72... Kf8 {[%clk 0:00:38.8]} 73. Ke1 {[%clk 0:00:25.9]} 73... Ke7
{[%clk 0:00:39.1]} 74. Kf2 {[%clk 0:00:26.8]} 74... Kf8 {[%clk 0:00:39.4]} 75.
Kg2 {[%clk 0:00:27.7]} 75... Ke7 {[%clk 0:00:39.9]} 76. Kg3 {[%clk 0:00:28.6]}
1/2-1/2